[Event "49th Rilton Cup 2019-20"]
[Site "Stockholm"]
[Date "2020.01.02"]
[Round "6.15"]
[White "Piesik, Piotr"]
[Black "Mikalsen, Erlend"]
[Result "1/2-1/2"]
[ECO "D37"]
[WhiteElo "2417"]
[BlackElo "2361"]
[Annotator "NA"]
[PlyCount "75"]
[EventDate "2019.12.27"]
[EventType "swiss"]
[EventCountry "SWE"]
[SourceTitle "playchess.com"]
[Source "ChessBase"]
[SourceQuality "1"]
[TimeControl "40/5400+30:1800+30"]

1. Nf3 {[%emt 0:00:28]} d5 {[%emt 0:00:00]} 2. d4 {[%emt 0:00:12]} Nf6 {[%emt 0:00:00]} 3. c4 {[%emt 0:00:19]} e6 {[%emt 0:00:00]} 4. Nc3 {[%emt 0:00:13]} Be7 {[%emt 0:00:00]} 5. cxd5 {[%emt 0:01:14]} exd5 {[%emt 0:00:05]} 6. Bg5 {[%emt 0:00:03]} c6 {[%emt 0:00:12]} 7. Qc2 {[%emt 0:01:48]} g6 {[%emt 0:02:05]} 8. e3 {[%emt 0:08:38]} Bf5 {[%emt 0:00:08]} 9. Bd3 {[%emt 0:00:26]} Bxd3 {[%emt 0:00:08]} 10. Qxd3 {[%emt 0:00:02]} Nbd7 {[%emt 0:02:13]} 11. O-O {[%emt 0:13:18]} O-O {[%emt 0:01:33]} 12. Rab1 {[%emt 0:03:43]} a5 {[%emt 0:02:03]} 13. a3 {[%emt 0:07:59]} Re8 {[%emt 0:09:01]} 14. b4 {[%emt 0:17:27]} axb4 {[%emt 0:06:26]} 15. axb4 {[%emt 0:00:24]} Ne4 {[%emt 0:13:16]} 16. Bxe7 $1 {[%emt 0:01:37]} Qxe7 {[%emt 0:00:45]} 17. Qc2 {[%emt 0:00:15]} b5 {[%emt 0:21:29]} 18. Nxe4 {[%emt 0:05:53]} dxe4 {[%emt 0:00:09]} 19. Nd2 {[%emt 0:00:04]} Rac8 {[%emt 0:00:41]} 20. Nb3 {[%emt 0:02:25]} Nb6 {[%emt 0:02:15]} 21. Qc5 $11 {[%emt 0:12:29]} Qxc5 {[%emt 0:03:35]} 22. Nxc5 {[%emt 0:00:19]} Nd5 {[%emt 0:00:38]} 23. Rb3 {[%emt 0:00:45]} Ra8 {[%emt 0:01:22]} 24. f3 {[%emt 0:09:17]} exf3 {[%emt 0:00:47]} 25. Rxf3 {[%emt 0:00:04]} Ra1+ {[%emt 0:01:07]} 26. Kf2 {[%emt 0:00:16]} f5 {[%emt 0:01:41]} 27. Nd3 {[%emt 0:04:27]} Ra2+ {[%emt 0:04:21]} 28. Nb2 {[%emt 0:00:27]} Re6 {[%emt 0:07:13]} 29. h3 {[%emt 0:02:59]} h5 {[%emt 0:04:50]} 30. Kg1 {[%emt 0:01:44]} Kg7 {[%emt 0:02:10]} 31. Nd3 {[%emt 0:01:54]} Rxe3 {[%emt 0:00:59]} 32. Rxe3 {[%emt 0:00:32]} Nxe3 {[%emt 0:00:04]} 33. Nf4 {[%emt 0:00:03]} Nc4 {[%emt 0:04:01]} 34. Rg3 {[%emt 0:00:35]} Ra1+ {[%emt 0:01:25]} 35. Kf2 {[%emt 0:00:39]} Ra2+ {[%emt 0:00:11]} 36. Kg1 {[%emt 0:00:18]} Ra1+ {[%emt 0:00:03]} 37. Kf2 {[%emt 0:00:55]} Ra2+ {[%emt 0:00:16]} 38. Kg1 {[%emt 0:02:44]} 1/2-1/2

[Event "49th Rilton Cup 2019-20"]
[Site "Stockholm"]
[Date "2020.01.02"]
[Round "6.16"]
[White "Leenhouts, Koen"]
[Black "Hobber, Anders"]
[Result "1-0"]
[ECO "D11"]
[WhiteElo "2415"]
[BlackElo "2357"]
[Annotator "ChessBase"]
[PlyCount "153"]
[EventDate "2019.12.27"]
[EventType "swiss"]
[EventCountry "SWE"]
[SourceTitle "playchess.com"]
[Source "ChessBase"]
[SourceQuality "1"]
[TimeControl "40/5400+30:1800+30"]

1. d4 {[%emt 0:01:24]} d5 {[%emt 0:00:13]} 2. c4 {[%emt 0:00:08]} c6 {[%emt 0:00:15]} 3. Nf3 {[%emt 0:00:11]} Nf6 {[%emt 0:00:32]} 4. e3 {[%emt 0:00:06]} a6 {[%emt 0:02:18]} 5. Nbd2 {[%emt 0:00:10]} g6 {[%emt 0:01:30]} 6. b4 {[%emt 0:01:44]} Bg7 {[%emt 0:01:12]} 7. a4 {[%emt 0:00:09]} O-O {[%emt 0:02:35]} 8. Be2 {[%emt 0:00:53]} Bg4 {[%emt 0:04:18]} 9. O-O {[%emt 0:00:52]} Nbd7 {[%emt 0:08:03]} 10. Qb3 {[%emt 0:05:53]} e5 {[%emt 0:06:23]} 11. dxe5 {[%emt 0:04:54]} Ne4 {[%emt 0:08:14]} 12. cxd5 {[%emt 0:07:48]} Nxd2 {[%emt 0:09:03]} 13. Bxd2 {[%emt 0:00:08]} Nxe5 {[%emt 0:02:53]} 14. Nd4 {[%emt 0:02:25]} cxd5 {[%emt 0:10:01]} 15. f3 {[%emt 0:07:23]} Be6 {[%emt 0:04:40]} 16. Rad1 {[%emt 0:04:16]} Rc8 {[%emt 0:02:50]} 17. Be1 {[%emt 0:01:30]} Nc4 {[%emt 0:02:34]} 18. Bf2 {[%emt 0:01:28]} Qe7 {[%emt 0:05:47]} 19. Nxe6 {[%emt 0:06:34]} Qxe6 {[%emt 0:02:07]} 20. e4 {[%emt 0:06:40]} dxe4 {[%emt 0:11:10]} 21. fxe4 {[%emt 0:00:40]} b5 {[%emt 0:00:30]} 22. axb5 {[%emt 0:12:08]} axb5 {[%emt 0:00:05]} 23. Qg3 {[%emt 0:00:33]} Be5 {[%emt 0:02:54]} 24. Qh4 {[%emt 0:01:37]} Bf6 {[%emt 0:00:34]} 25. Qg4 {[%emt 0:01:28]} h5 {[%emt 0:02:18]} 26. Qxe6 {[%emt 0:05:38]} fxe6 {[%emt 0:00:02]} 27. Bc5 {[%emt 0:00:49]} Rf7 {[%emt 0:01:06]} 28. Rf3 {[%emt 0:04:28]} Be7 {[%emt 0:01:16]} 29. Bxe7 {[%emt 0:05:47]} Rxe7 {[%emt 0:00:12]} 30. Rg3 {[%emt 0:00:11]} Kh7 {[%emt 0:00:37]} 31. Rg5 {[%emt 0:00:40]} e5 {[%emt 0:03:13]} 32. Rd5 {[%emt 0:00:51]} Rb7 {[%emt 0:00:33]} 33. h4 {[%emt 0:00:46]} Rf8 {[%emt 0:01:06]} 34. Rc5 {[%emt 0:00:58]} Rf4 {[%emt 0:03:48]} 35. Bxc4 {[%emt 0:05:37]} bxc4 {[%emt 0:00:01]} 36. Rxc4 {[%emt 0:00:08]} Rbf7 {[%emt 0:00:49]} 37. Rxe5 {[%emt 0:02:22]} Rf1+ {[%emt 0:00:06]} 38. Kh2 {[%emt 0:00:05]} R7f4 {[%emt 0:00:14]} 39. Rg5 {[%emt 0:06:29]} Kh6 {[%emt 0:01:20]} 40. Kg3 {[%emt 0:00:43]} Rf6 {[%emt 0:00:34]} 41. b5 {[%emt 0:06:55]} Rb1 {[%emt 0:01:34]} 42. Rc3 {[%emt 0:10:13]} Re1 {[%emt 0:08:13]} 43. e5 {[%emt 0:03:20]} Rb6 {[%emt 0:01:31]} 44. Rc6 {[%emt 0:02:37]} Rxc6 {[%emt 0:00:46]} 45. bxc6 {[%emt 0:00:01]} Rc1 {[%emt 0:00:13]} 46. e6 {[%emt 0:01:15]} Rxc6 {[%emt 0:01:45]} 47. Re5 {[%emt 0:00:03]} Rc8 {[%emt 0:00:56]} 48. Kf4 {[%emt 0:02:28]} Kg7 {[%emt 0:04:21]} 49. e7 {[%emt 0:00:06]} Re8 {[%emt 0:02:11]} 50. Kg5 {[%emt 0:00:06]} Kf7 {[%emt 0:00:10]} 51. Re2 {[%emt 0:00:28]} Kg7 {[%emt 0:00:10]} 52. Re6 {[%emt 0:00:20]} Kf7 {[%emt 0:00:11]} 53. Rxg6 {[%emt 0:00:40]} Rxe7 {[%emt 0:00:14]} 54. Kxh5 {[%emt 0:00:11]} Re4 {[%emt 0:05:28]} 55. Rg4 {[%emt 0:00:12]} Re6 {[%emt 0:00:39]} 56. Rg5 {[%emt 0:00:17]} Re4 {[%emt 0:00:16]} 57. g4 {[%emt 0:00:19]} Re6 {[%emt 0:00:16]} 58. Ra5 {[%emt 0:00:25]} Kg8 {[%emt 0:03:26]} 59. Ra7 {[%emt 0:01:22]} Rb6 {[%emt 0:01:19]} 60. Re7 {[%emt 0:00:19]} Ra6 {[%emt 0:01:03]} 61. Kg5 {[%emt 0:00:28]} Rb6 {[%emt 0:01:17]} 62. Kf5 {[%emt 0:00:59]} Ra6 {[%emt 0:01:19]} 63. h5 {[%emt 0:02:36]} Rb6 {[%emt 0:02:03]} 64. Re5 {[%emt 0:00:40]} Ra6 {[%emt 0:00:17]} 65. Kg5 {[%emt 0:00:54]} Rb6 {[%emt 0:00:20]} 66. h6 {[%emt 0:00:50]} Kh7 {[%emt 0:01:16]} 67. Re7+ {[%emt 0:00:05]} Kg8 {[%emt 0:00:11]} 68. Kh5 {[%emt 0:00:05]} Ra6 {[%emt 0:01:38]} 69. g5 {[%emt 0:00:08]} Ra5 {[%emt 0:00:35]} 70. Kg6 {[%emt 0:00:48]} Ra6+ {[%emt 0:00:06]} 71. Kf5 {[%emt 0:00:05]} Ra5+ {[%emt 0:02:49]} 72. Re5 {[%emt 0:00:13]} Ra8 {[%emt 0:00:25]} 73. g6 {[%emt 0:00:07]} Rb8 {[%emt 0:00:39]} 74. Kg5 {[%emt 0:00:05]} Ra8 {[%emt 0:00:28]} 75. h7+ {[%emt 0:00:50]} Kg7 {[%emt 0:00:05]} 76. Re7+ {[%emt 0:00:06]} Kh8 {[%emt 0:00:02]} 77. Kh6 {[%emt 0:00:14]} 1-0

[Event "49th Rilton Cup 2019-20"]
[Site "Stockholm"]
[Date "2020.01.02"]
[Round "6.17"]
[White "Koykka, Pekka"]
[Black "Rathanvel, V S"]
[Result "0-1"]
[ECO "A40"]
[WhiteElo "2372"]
[BlackElo "2411"]
[Annotator "ChessBase"]
[PlyCount "154"]
[EventDate "2019.12.27"]
[EventType "swiss"]
[EventCountry "SWE"]
[SourceTitle "playchess.com"]
[Source "ChessBase"]
[SourceQuality "1"]
[TimeControl "40/5400+30:1800+30"]

1. d4 {[%emt 0:00:00]} Nf6 {[%emt 0:00:00]} 2. c4 {[%emt 0:00:00]} e6 {[%emt 0:01:56]} 3. g3 {[%emt 0:00:43]} Bb4+ {[%emt 0:01:44]} 4. Nd2 {[%emt 0:02:19]} d5 {[%emt 0:02:22]} 5. Qa4+ {[%emt 0:07:13]} Nc6 {[%emt 0:00:11]} 6. Ngf3 {[%emt 0:04:36]} dxc4 {[%emt 0:12:06]} 7. Bg2 {[%emt 0:07:51]} O-O {[%emt 0:04:38]} 8. O-O {[%emt 0:13:36]} Rb8 {[%emt 0:29:08]} 9. Ne5 {[%emt 0:32:03]} b5 {[%emt 0:03:59]} 10. Nxc6 {[%emt 0:04:01]} bxa4 {[%emt 0:00:06]} 11. Nxd8 {[%emt 0:00:05]} Rxd8 {[%emt 0:01:12]} 12. Nxc4 {[%emt 0:11:02]} Ba6 {[%emt 0:00:59]} 13. Ne5 {[%emt 0:03:17]} Bxe2 {[%emt 0:00:32]} 14. a3 {[%emt 0:02:07]} Bxf1 {[%emt 0:02:34]} 15. Kxf1 {[%emt 0:00:04]} Be7 {[%emt 0:05:49]} 16. Nc6 {[%emt 0:00:20]} Re8 {[%emt 0:02:03]} 17. Nxb8 {[%emt 0:01:05]} Rxb8 {[%emt 0:00:05]} 18. Bc6 {[%emt 0:01:18]} Nd5 {[%emt 0:00:21]} 19. Bxa4 {[%emt 0:06:42]} Bf6 {[%emt 0:00:11]} 20. Ra2 {[%emt 0:01:06]} Bxd4 {[%emt 0:00:21]} 21. Bc6 {[%emt 0:00:13]} Ne7 {[%emt 0:06:53]} 22. Ba4 {[%emt 0:00:14]} c5 {[%emt 0:00:20]} 23. b3 {[%emt 0:00:46]} Nd5 {[%emt 0:01:22]} 24. Bd2 {[%emt 0:00:22]} g6 {[%emt 0:11:51]} 25. Rc2 {[%emt 0:00:06]} Kg7 {[%emt 0:01:55]} 26. Ba5 {[%emt 0:00:09]} e5 {[%emt 0:03:31]} 27. Bc6 {[%emt 0:01:18]} Ne7 {[%emt 0:02:19]} 28. Ba4 {[%emt 0:00:05]} Nf5 {[%emt 0:03:06]} 29. g4 {[%emt 0:01:14]} Ne7 {[%emt 0:00:31]} 30. Bc7 {[%emt 0:00:27]} Rc8 {[%emt 0:00:34]} 31. Bd6 {[%emt 0:00:28]} Nd5 {[%emt 0:00:08]} 32. Bb5 {[%emt 0:00:34]} Nc3 {[%emt 0:01:29]} 33. Bc4 {[%emt 0:01:03]} Ne4 {[%emt 0:00:34]} 34. Be7 {[%emt 0:00:00]} Re8 {[%emt 0:01:14]} 35. Bh4 {[%emt 0:00:26]} Nd6 {[%emt 0:00:28]} 36. Bd5 {[%emt 0:00:21]} Nb5 {[%emt 0:00:31]} 37. a4 {[%emt 0:00:30]} Nc7 {[%emt 0:00:39]} 38. Bc4 {[%emt 0:00:18]} Ne6 {[%emt 0:00:28]} 39. f3 {[%emt 0:00:45]} Be3 {[%emt 0:00:36]} 40. Re2 {[%emt 0:00:40]} Bd4 {[%emt 0:00:31]} 41. Bg3 {[%emt 0:01:04]} f6 {[%emt 0:07:29]} 42. f4 {[%emt 0:04:39]} Nd8 {[%emt 0:01:32]} 43. Kg2 {[%emt 0:05:27]} Nb7 {[%emt 0:02:45]} 44. Kf3 {[%emt 0:09:19]} Nd6 {[%emt 0:01:40]} 45. Bd5 {[%emt 0:00:10]} g5 {[%emt 0:00:21]} 46. fxg5 {[%emt 0:03:49]} fxg5 {[%emt 0:00:08]} 47. Re1 {[%emt 0:00:13]} Re7 {[%emt 0:06:08]} 48. Ke2 {[%emt 0:00:24]} Ne8 {[%emt 0:00:25]} 49. Kd3 {[%emt 0:02:29]} Nf6 {[%emt 0:00:10]} 50. Bf3 {[%emt 0:00:39]} Re8 {[%emt 0:05:41]} 51. Re2 {[%emt 0:04:13]} Kf7 {[%emt 0:03:09]} 52. Re1 {[%emt 0:01:15]} Rb8 {[%emt 0:00:46]} 53. Kc2 {[%emt 0:00:45]} Re8 {[%emt 0:01:40]} 54. Kd3 {[%emt 0:00:26]} Ke6 {[%emt 0:00:18]} 55. Kc2 {[%emt 0:00:29]} Kf7 {[%emt 0:01:50]} 56. Kd3 {[%emt 0:00:14]} Rb8 {[%emt 0:01:11]} 57. Kc2 {[%emt 0:00:20]} c4 {[%emt 0:00:22]} 58. bxc4 {[%emt 0:00:49]} Rb2+ {[%emt 0:00:06]} 59. Kc1 {[%emt 0:01:23]} Ra2 {[%emt 0:02:09]} 60. Bd1 {[%emt 0:01:16]} Nd7 {[%emt 0:00:10]} 61. Bb3 {[%emt 0:00:58]} Ra3 {[%emt 0:02:13]} 62. Bc2 {[%emt 0:00:18]} h6 {[%emt 0:00:45]} 63. Rf1+ {[%emt 0:00:50]} Ke6 {[%emt 0:00:22]} 64. Kd2 {[%emt 0:00:32]} Nb6 {[%emt 0:00:18]} 65. c5 {[%emt 0:00:29]} Nc4+ {[%emt 0:00:13]} 66. Ke1 {[%emt 0:00:31]} Ra1+ {[%emt 0:00:16]} 67. Ke2 {[%emt 0:00:11]} Rxf1 {[%emt 0:00:04]} 68. Kxf1 {[%emt 0:00:30]} Ne3+ {[%emt 0:00:01]} 69. Ke2 {[%emt 0:00:09]} Nxc2 {[%emt 0:00:04]} 70. Kd3 {[%emt 0:00:52]} Nb4+ {[%emt 0:00:15]} 71. Kc4 {[%emt 0:00:09]} Nc6 {[%emt 0:00:05]} 72. Be1 {[%emt 0:01:09]} e4 {[%emt 0:00:08]} 73. h3 {[%emt 0:00:30]} a6 {[%emt 0:00:06]} 74. Bg3 {[%emt 0:00:30]} Bg1 {[%emt 0:01:15]} 75. Bd6 {[%emt 0:00:18]} Ne5+ {[%emt 0:00:17]} 76. Kb4 {[%emt 0:00:42]} Nd3+ {[%emt 0:00:12]} 77. Kc4 {[%emt 0:00:11]} Bxc5 {[%emt 0:00:07] Kd4 Ke5+} 0-1

[Event "49th Rilton Cup 2019-20"]
[Site "Stockholm"]
[Date "2020.01.02"]
[Round "6.18"]
[White "Bruaset, Eivind"]
[Black "Spyropoulos, Nikolaos"]
[Result "0-1"]
[ECO "B03"]
[WhiteElo "2217"]
[BlackElo "2401"]
[Annotator "NA"]
[PlyCount "134"]
[EventDate "2019.12.27"]
[EventType "swiss"]
[EventCountry "SWE"]
[SourceTitle "playchess.com"]
[Source "ChessBase"]
[SourceQuality "1"]
[TimeControl "40/5400+30:1800+30"]

1. e4 {[%emt 0:02:16]} Nf6 {[%emt 0:00:00]} 2. e5 {[%emt 0:00:40]} Nd5 {[%emt 0:00:00]} 3. d4 {[%emt 0:00:07]} d6 {[%emt 0:00:00]} 4. c4 {[%emt 0:00:41]} Nb6 {[%emt 0:00:37]} 5. f4 {[%emt 0:00:12]} g6 {[%emt 0:00:10]} 6. Nc3 {[%emt 0:00:43]} Bg7 {[%emt 0:00:29]} 7. Be3 {[%emt 0:00:17]} Be6 {[%emt 0:01:34] B03: Alekhine's Defence: Four Pawns Attack} 8. b3 {[%emt 0:00:40]} (8. Nf3 O-O 9. c5 Nd5 10. Nxd5 Bxd5 11. Be2 Nc6 12. O-O b6 13. cxd6 cxd6 14. Rc1 Rc8 15. Qa4 {1-0 (90) Jones,G (2640)-Cornette,D (2439) chess.com INT 2018}) 8... O-O {[%emt 0:00:48]} 9. Be2 {[%emt 0:00:20]} dxe5 {[%emt 0:07:49]} 10. fxe5 {[%emt 0:00:14]} c5 {[%emt 0:00:58]} 11. d5 {[%emt 0:00:08]} Bc8 $146 {[%emt 0:11:40]} ({Predecessor:} 11... Bxe5 12. Rc1 Bf5 13. Nf3 Bf6 14. Bxc5 N8d7 15. Be3 Ne5 16. Nxe5 Bxe5 {0-1 (39) Bousmaha,L (1364)-Gaal,Z (1956) Pocos de Caldas 2017}) 12. Rc1 {[%emt 0:08:01]} N8d7 {[%emt 0:23:51]} 13. Nf3 {[%emt 0:01:32]} Nxe5 {[%emt 0:07:19]} 14. Bxc5 {[%emt 0:03:40]} Nbd7 {[%emt 0:07:50]} 15. Bd4 {[%emt 0:07:34]} Nxf3+ {[%emt 0:00:09]} 16. Bxf3 {[%emt 0:00:07]} Ne5 {[%emt 0:00:04]} 17. Be2 {[%emt 0:02:42]} e6 {[%emt 0:01:35]} 18. O-O {[%emt 0:01:40]} exd5 {[%emt 0:08:52]} 19. cxd5 Qg5 {[%emt 0:08:24]} 20. Kh1 {[%emt 0:07:47]} Bf5 {[%emt 0:09:54]} 21. Bf3 {[%emt 0:04:16]} Rad8 {[%emt 0:08:51]} 22. Ne4 {[%emt 0:11:13]} Bxe4 {[%emt 0:09:13]} 23. Bxe4 $15 {[%emt 0:00:04]} f5 {[%emt 0:02:22]} 24. Bf3 {[%emt 0:06:53]} Nxf3 {[%emt 0:00:50]} 25. Bxg7 {[%emt 0:11:33]} Nxh2 26. Kxh2 Kxg7 {[%emt 0:00:40]} 27. Qd4+ {[%emt 0:00:44]} Qf6 {[%emt 0:00:00]} 28. Qxa7 {[%emt 0:02:31]} Rf7 29. Qe3 {[%emt 0:04:18]} Rxd5 {[%emt 0:00:49]} 30. Rc4 {[%emt 0:01:02]} Re7 {[%emt 0:02:19]} 31. Qg3 {[%emt 0:00:16]} Qd6 {[%emt 0:02:19]} 32. Qxd6 {[%emt 0:02:13]} Rxd6 {[%emt 0:00:03]} 33. Rfc1 {[%emt 0:00:38]} Rdd7 {[%emt 0:01:08]} 34. a4 {[%emt 0:00:59]} g5 {[%emt 0:00:40]} 35. b4 {[%emt 0:00:35]} f4 {[%emt 0:00:53]} 36. b5 {[%emt 0:00:17]} Kg6 {[%emt 0:00:32]} 37. b6 {[%emt 0:00:41]} Re2 {[%emt 0:00:48]} 38. R1c2 {[%emt 0:00:38]} Re1 {[%emt 0:01:04]} 39. Rc1 {[%emt 0:00:10]} Re2 {[%emt 0:00:42]} 40. R1c2 {[%emt 0:00:25]} f3 {[%emt 0:01:02]} 41. Rxe2 {[%emt 0:30:57]} fxe2 {[%emt 0:30:10]} 42. Re4 {[%emt 0:00:23]} Rd2 {[%emt 0:00:00]} 43. Kg3 {[%emt 0:00:00]} Kf5 {[%emt 0:00:00]} 44. Re8 {[%emt 0:00:00]} Ra2 {[%emt 0:00:00]} 45. Kf2 {[%emt 0:00:00]} Rxa4 {[%emt 0:00:00]} 46. Rf8+ {[%emt 0:00:00]} Kg4 {[%emt 0:00:12]} 47. Kxe2 {[%emt 0:00:00]} Re4+ {[%emt 0:00:51]} 48. Kd3 {[%emt 0:00:36]} Re6 {[%emt 0:00:18]} 49. Rf7 {[%emt 0:00:07]} Rxb6 {[%emt 0:00:05]} 50. Rxh7 {[%emt 0:00:02]} Kg3 {[%emt 0:00:15]} 51. Kc4 {[%emt 0:01:05]} g4 {[%emt 0:00:42]} 52. Rg7 {[%emt 0:00:08]} Rd6 {[%emt 0:02:02]} 53. Kc3 {[%emt 0:00:23]} Rd5 {[%emt 0:01:36]} 54. Rg6 {[%emt 0:00:41]} Ra5 {[%emt 0:00:33]} 55. Kd3 {[%emt 0:00:38]} Rb5 {[%emt 0:00:29]} 56. Rg7 {[%emt 0:00:48]} Rb2 {[%emt 0:00:55]} 57. Rg5 {[%emt 0:00:39]} Rb4 {[%emt 0:00:22]} 58. Kc3 {[%emt 0:00:06]} Ra4 {[%emt 0:00:21]} 59. Rb5 {[%emt 0:00:35]} Kxg2 {[%emt 0:00:07]} 60. Kd2 {[%emt 0:00:10]} Re4 {[%emt 0:00:12]} 61. Rxb7 {[%emt 0:00:12]} g3 {[%emt 0:00:04]} 62. Rb2 {[%emt 0:00:35]} Re8 {[%emt 0:00:07]} 63. Kd1+ {[%emt 0:00:00]} Kf1 {[%emt 0:00:22]} 64. Rb3 {[%emt 0:00:00]} Rd8+ {[%emt 0:00:12]} 65. Kc2 {[%emt 0:00:00]} g2 {[%emt 0:00:05]} 66. Rf3+ {[%emt 0:00:03]} Ke2 {[%emt 0:00:06]} 67. Rg3 {[%emt 0:00:06]} Kf2 0-1

[Event "49th Rilton Cup 2019-20"]
[Site "Stockholm"]
[Date "2020.01.02"]
[Round "6.19"]
[White "Lokander, Martin"]
[Black "Bellon Lopez, Juan Manuel"]
[Result "1-0"]
[ECO "D12"]
[WhiteElo "2397"]
[BlackElo "2353"]
[Annotator "ChessBase"]
[PlyCount "59"]
[EventDate "2019.12.27"]
[EventType "swiss"]
[EventCountry "SWE"]
[SourceTitle "playchess.com"]
[Source "ChessBase"]
[SourceQuality "1"]
[TimeControl "40/5400+30:1800+30"]

1. d4 {[%emt 0:00:00]} d5 {[%emt 0:00:00]} 2. c4 {[%emt 0:00:00]} c6 {[%emt 0:00:00]} 3. Nf3 {[%emt 0:01:33]} Nf6 {[%emt 0:01:01]} 4. e3 {[%emt 0:00:15]} Bf5 {[%emt 0:01:01]} 5. Nc3 {[%emt 0:00:22]} e6 {[%emt 0:00:34]} 6. Nh4 {[%emt 0:00:27]} Be4 {[%emt 0:00:27]} 7. f3 {[%emt 0:00:46]} Bg6 {[%emt 0:00:08]} 8. Qb3 {[%emt 0:01:17]} Qc7 {[%emt 0:00:24]} 9. Bd2 {[%emt 0:01:24]} Be7 {[%emt 0:01:09]} 10. O-O-O {[%emt 0:03:22]} Nbd7 {[%emt 0:00:57]} 11. cxd5 {[%emt 0:00:20]} exd5 {[%emt 0:00:15]} 12. Nxg6 {[%emt 0:01:16]} hxg6 {[%emt 0:00:09]} 13. Kb1 {[%emt 0:00:50]} Nb6 {[%emt 0:07:51]} 14. h3 {[%emt 0:07:51]} Nh5 {[%emt 0:17:26]} 15. Bd3 {[%emt 0:02:01]} Ng3 {[%emt 0:00:03]} 16. Rhe1 {[%emt 0:00:20]} Nf5 {[%emt 0:00:46]} 17. Rc1 {[%emt 0:13:49]} Qh2 {[%emt 0:18:38]} 18. Rg1 {[%emt 0:26:45]} Qd6 {[%emt 0:06:51]} 19. a3 {[%emt 0:06:21]} O-O {[%emt 0:10:19]} 20. g4 {[%emt 0:03:29]} Qh2 {[%emt 0:02:55]} 21. Qd1 {[%emt 0:04:25]} Nd6 {[%emt 0:01:35]} 22. Rc2 {[%emt 0:03:38]} Ndc4 {[%emt 0:01:31]} 23. f4 {[%emt 0:01:59]} Qf2 {[%emt 0:08:25]} 24. Bc1 {[%emt 0:00:27]} Qh4 {[%emt 0:00:08]} 25. g5 {[%emt 0:00:03]} Qxh3 {[%emt 0:05:15]} 26. Rh1 {[%emt 0:01:39]} Qd7 {[%emt 0:04:39]} 27. Qg1 {[%emt 0:01:13]} f5 {[%emt 0:02:47]} 28. gxf6 {[%emt 0:00:13]} Rxf6 {[%emt 0:00:08]} 29. Bxg6 {[%emt 0:00:19]} Qd6 {[%emt 0:02:05]} 30. Rh8+ 1-0

[Event "49th Rilton Cup 2019-20"]
[Site "Stockholm"]
[Date "2020.01.02"]
[Round "6.20"]
[White "Dragicevic, Drazen"]
[Black "Quesada Vera, Liordis"]
[Result "1-0"]
[ECO "A05"]
[WhiteElo "2294"]
[BlackElo "2391"]
[Annotator "ChessBase"]
[PlyCount "111"]
[EventDate "2019.12.27"]
[EventType "swiss"]
[EventCountry "SWE"]
[SourceTitle "playchess.com"]
[Source "ChessBase"]
[SourceQuality "1"]
[TimeControl "40/5400+30:1800+30"]

1. Nf3 Nf6 {[%emt 0:07:44]} 2. g3 {[%emt 0:00:08]} b5 {[%emt 0:00:38]} 3. a4 {[%emt 0:05:10]} c6 {[%emt 0:06:18]} 4. Na3 {[%emt 0:12:11]} a6 {[%emt 0:17:00]} 5. c3 {[%emt 0:03:11]} Bb7 {[%emt 0:02:46]} 6. d4 {[%emt 0:01:42]} e6 {[%emt 0:03:00]} 7. Bf4 {[%emt 0:13:18]} Be7 {[%emt 0:13:29]} 8. Bg2 {[%emt 0:01:53]} O-O {[%emt 0:04:43]} 9. O-O {[%emt 0:04:26]} d6 {[%emt 0:06:54]} 10. Qb3 {[%emt 0:06:59]} d5 {[%emt 0:14:23]} 11. Rfd1 {[%emt 0:09:43]} Nbd7 {[%emt 0:01:08]} 12. axb5 {[%emt 0:10:40]} cxb5 {[%emt 0:00:20]} 13. Nc2 {[%emt 0:00:52]} Qb6 {[%emt 0:01:15]} 14. Nce1 {[%emt 0:05:35]} a5 {[%emt 0:03:01]} 15. Nd3 {[%emt 0:00:42]} Rfc8 {[%emt 0:00:16]} 16. Rdc1 {[%emt 0:01:31]} a4 {[%emt 0:02:21]} 17. Qd1 {[%emt 0:00:45]} Ne4 {[%emt 0:02:21]} 18. Nd2 {[%emt 0:02:16]} Nd6 {[%emt 0:03:26]} 19. h4 {[%emt 0:03:17]} Nc4 {[%emt 0:01:10]} 20. Rab1 {[%emt 0:04:42]} b4 {[%emt 0:01:50]} 21. Nxc4 {[%emt 0:04:37]} Rxc4 {[%emt 0:02:23]} 22. cxb4 {[%emt 0:01:18]} Bxb4 {[%emt 0:00:22]} 23. Rxc4 {[%emt 0:01:58]} dxc4 {[%emt 0:00:02]} 24. Bxb7 {[%emt 0:00:47]} Qxb7 {[%emt 0:00:17]} 25. Nxb4 {[%emt 0:00:38]} Qxb4 {[%emt 0:00:02]} 26. Qc2 {[%emt 0:01:37]} Qb3 {[%emt 0:00:49]} 27. Rc1 {[%emt 0:00:50]} Nb6 {[%emt 0:01:12]} 28. Bd6 {[%emt 0:00:23]} h6 {[%emt 0:00:43]} 29. Bc5 {[%emt 0:01:53]} Nd5 {[%emt 0:00:15]} 30. Qxb3 {[%emt 0:01:03]} cxb3 {[%emt 0:00:29]} 31. e4 {[%emt 0:00:05]} Nc7 {[%emt 0:01:52]} 32. Kf1 {[%emt 0:00:24]} Nb5 {[%emt 0:00:26]} 33. Ra1 {[%emt 0:01:02]} a3 {[%emt 0:00:27]} 34. Bxa3 {[%emt 0:00:21]} Rxa3 {[%emt 0:02:36]} 35. bxa3 {[%emt 0:00:01]} Nc3 {[%emt 0:00:01]} 36. Re1 {[%emt 0:01:14]} b2 {[%emt 0:00:34]} 37. a4 {[%emt 0:00:14]} b1=Q {[%emt 0:00:38]} 38. Rxb1 {[%emt 0:00:05]} Nxb1 {[%emt 0:00:08]} 39. a5 {[%emt 0:00:11]} Nc3 {[%emt 0:00:02]} 40. a6 {[%emt 0:00:19]} Nb5 {[%emt 0:00:22]} 41. Ke2 {[%emt 0:31:00]} Kf8 {[%emt 0:03:49]} 42. Kd3 {[%emt 0:00:00]} Ke7 {[%emt 0:00:09]} 43. Kc4 {[%emt 0:00:00]} Nc7 {[%emt 0:00:06]} 44. a7 {[%emt 0:00:00]} Kd6 {[%emt 0:00:10]} 45. h5 {[%emt 0:00:00]} f5 {[%emt 0:13:28]} 46. f3 {[%emt 0:00:00]} Kc6 {[%emt 0:00:05]} 47. g4 {[%emt 0:00:00]} fxe4 {[%emt 0:11:09]} 48. fxe4 {[%emt 0:00:00]} Kb6 {[%emt 0:00:14]} 49. d5 {[%emt 0:00:00]} Kxa7 {[%emt 0:01:47]} 50. d6 {[%emt 0:00:19]} Na8 {[%emt 0:00:48]} 51. Kd4 {[%emt 0:00:17]} Kb6 {[%emt 0:03:21]} 52. Ke5 {[%emt 0:00:08]} Kc6 {[%emt 0:00:03]} 53. Kxe6 {[%emt 0:00:07]} Nb6 {[%emt 0:00:10]} 54. Kf7 {[%emt 0:02:07]} Kxd6 {[%emt 0:01:05]} 55. Kxg7 {[%emt 0:00:06]} Ke7 {[%emt 0:02:29]} 56. g5 {[%emt 0:01:24]} 1-0